fUSD/lending_fUSD_20241010
["ID","MTS","AMOUNT","RATE_DAILY","PERIOD"]
[340111806,1728588563939,4865.0,0.000125,3]
[340111811,1728588626302,6911.915249,0.000124,5]
[340111815,1728588631823,-200.98456089,0.00010372,2]
[340111816,1728588631832,-200.98456088,0.00010373,2]
[340111817,1728588631843,-200.98456088,0.00010373,2]
[340111818,1728588631852,-150.0,0.00010437,2]
[340111819,1728588631862,-538.05,0.00010473,2]
[340111820,1728588631871,-250.0,0.00010536,2]
[340111822,1728588631880,-300.0,0.00010539,2]
[340111824,1728588631889,-438.36,0.0001054,2]
[340111826,1728588631899,-3911.07564716,0.0001054,2]
[340111827,1728588631910,-12177.92299829,0.0001054,2]
[340111828,1728588631921,-846.08694448,0.0001054,2]
[340111829,1728588631932,-702.93574009,0.0001054,2]
[340111830,1728588631943,-2034.3771887,0.0001054,2]
[340111831,1728588631956,-299.6900001,0.0001054,2]
[340111832,1728588631967,-3124.51379,0.0001054,2]
[340111833,1728588631977,-187.666515,0.00010633,2]
[340111834,1728588631988,-1432.76,0.00010633,2]
[340111835,1728588631997,-500.0,0.00010815,2]
[340111836,1728588632012,-483.39139399,0.00010824,2]
[340111837,1728588632024,-16.60860601,0.00010824,2]
[340111838,1728588632032,-318.48090244,0.00010833,2]
[340111839,1728588632043,-181.51909756,0.00010833,2]
[340111840,1728588632052,-95.00090244,0.00010842,2]
[340111841,1728588632063,-404.99909756,0.00010842,2]
[340111842,1728588632073,-500.0,0.0001085,2]
[340111843,1728588632082,-452.78186175,0.00010859,2]
[340111844,1728588632094,-47.21813825,0.00010859,2]
[340111845,1728588632103,-500.0,0.00010868,2]
[340111846,1728588632113,-500.0,0.00010877,2]
[340111847,1728588632123,-5122.09125378,0.0001088,2]
[340111848,1728588632133,-500.0,0.00010886,2]
[340111849,1728588632143,-433.73056296,0.00010894,2]
[340111850,1728588632154,-66.26943704,0.00010894,2]
[340111851,1728588632164,-362.7851,0.000109,2]
[340111852,1728588632173,-2.94546696,0.000109,2]
[340111853,1728588632184,-450.0,0.000109,2]
[340111854,1728588632195,-2845.26197858,0.000109,2]
[340111855,1728588632209,-670.05965265,0.000109,2]
[340111856,1728588632224,-806.42499594,0.000109,2]
[340111857,1728588632236,-4118.27119374,0.000109,2]
[340111858,1728588632247,-541.49640217,0.000109,2]
[340111859,1728588632259,-4277.03584135,0.000109,2]
[340111860,1728588632271,-752.8607206,0.000109,2]
[340111861,1728588632283,-3956.27515077,0.000109,2]
[340111862,1728588632295,-1947.2218158,0.000109,2]
[340111863,1728588632307,-2116.58799259,0.000109,2]
[340111864,1728588632318,-3106.15268631,0.000109,2]
[340111865,1728588632331,-271.96394405,0.000109,2]
[340111866,1728588632341,-806.59811442,0.000109,2]
[340111867,1728588632353,-889.15149544,0.000109,2]
[340111868,1728588632364,-250.0,0.000109,2]
[340111869,1728588632375,-752.76793986,0.000109,2]
[340111870,1728588632386,-490.49640252,0.000109,2]
[340111874,1728588638365,-460.04,0.000109,2]
[340111875,1728588638377,-299.79765415,0.000109,2]
[340111876,1728588638388,-2100.65791727,0.000109,2]
[340111877,1728588638400,-13869.98293483,0.000109,2]
[340111878,1728588638410,-1336.9387,0.000109,2]
[340111879,1728588638420,-3052.55198735,0.000109,2]
[340111880,1728588638429,-153.21512411,0.000109,2]
[340111881,1728588638438,-500.0,0.00010903,2]
[340111882,1728588638448,-500.0,0.00010912,2]
[340111883,1728588638458,-500.0,0.00010921,2]
[340111884,1728588638473,-500.0,0.0001093,2]
[340111885,1728588638483,-500.0,0.00010938,2]
[340111886,1728588638495,-842.63257999,0.00010944,2]
[340111887,1728588638507,-157.36742001,0.00010944,2]
[340111888,1728588638516,-1000.0,0.00010945,2]
[340111889,1728588638526,-1000.0,0.00010945,2]
[340111890,1728588638535,-1000.0,0.00010945,2]
[340111891,1728588638544,-447.25503202,0.00010945,2]
[340111892,1728588638555,-275.35926798,0.00010945,2]
[340111893,1728588638565,-42.67025884,0.00010947,2]
[340111894,1728588638576,-457.32974116,0.00010947,2]
[340111895,1728588638586,-42.67025884,0.00010956,2]
[340111896,1728588638598,-457.32974116,0.00010956,2]
[340111897,1728588638607,-250.0,0.00010959,2]
[340111898,1728588638617,-162.79,0.00010959,2]
[340111899,1728588638626,-375.03,0.00010959,2]
[340111900,1728588638636,-500.0,0.00010965,2]
[340111901,1728588638646,-500.0,0.00010974,2]
[340111902,1728588638656,-500.0,0.00010982,2]
[340111903,1728588638665,-150.0,0.00010986,2]
[340111904,1728588638675,-500.0,0.00010991,2]
[340111905,1728588638685,-427.71692017,0.00010999,2]
[340111906,1728588638695,-704.0,0.00011,2]
[340111907,1728588638704,-57069.31751197,0.00011,2]
[340111908,1728588638720,-600.0,0.00011,2]
[340111909,1728588638735,-1201.07485359,0.00011,2]
[340111910,1728588638747,-395.84138024,0.00011,2]
[340111911,1728588638758,-274.27572277,0.00011,2]
[340111912,1728588638770,-42957.84649716,0.00011,2]
[340111913,1728588638779,-380495.10942884,0.00011,2]
[340111914,1728588638790,-830.87745961,0.00011,2]
[340111915,1728588638800,-34672.88350497,0.00011,2]
[340111925,1728588640120,-1189.901948,0.00011,2]
[340111926,1728588640131,-2037.33,0.00011,2]
[340111927,1728588640338,-4040.214,0.00011,2]
[340111953,1728588643487,-100030.0,0.00011,2]
[340111954,1728588643762,-116276.83491431,0.00011,2]
[340111955,1728588643774,-250100.0,0.00011,2]
[340111956,1728588643816,-700.0,0.00011,2]
[340111958,1728588645915,-95999.99999337,0.00011,2]
[340111959,1728588645956,-595.264,0.00011,2]
[340111960,1728588646111,-282.348,0.00011,2]
[340111961,1728588646261,-958.27671882,0.00011,2]
[340111964,1728588848450,4604.0,0.00012,5]
[340111965,1728588943163,150.0,8.892e-05,2]
[340111966,1728588943185,150.0,8.892e-05,2]
[340111967,1728588943215,199.24,8.892e-05,2]
[340111969,1728589333821,-304767.95317886,0.00032407,120]
[340111970,1728589333844,-154634.12518717,0.00032407,120]
[340111971,1728589333868,-377.0,0.00032407,120]
[340111972,1728589333890,-387.97450325,0.00032407,60]
[340111973,1728589333914,-186.99292894,0.00032407,120]
[340111974,1728589333936,-7526.69381162,0.00032407,120]
[340111975,1728589333958,-8781.91800161,0.00032407,60]
[340111976,1728589333980,-23337.34238855,0.00032407,120]
[340111977,1728589344160,-995.23,0.000226,14]
[340111978,1728589344184,-152.0,0.00022936,10]
[340111979,1728589344208,-152.0,0.00023413,11]
[340111980,1728589344234,-152.0,0.00023891,12]
[340111981,1728589344257,-152.0,0.00024368,13]
[340111982,1728589344283,-152.0,0.00024846,14]
[340111983,1728589344306,-6653.3607042,0.00025,120]
[340111984,1728589344333,-152.0,0.00025323,15]
[340111985,1728589344358,-152.0,0.00025801,16]
[340111986,1728589344383,-152.0,0.00026278,17]
[340111987,1728589344409,-152.0,0.00026756,18]
[340111988,1728589344436,-2078.13476976,0.00027,120]
[340111989,1728589344458,-152.0,0.00027233,19]
[340111990,1728589344482,-200.0,0.00027397,10]
[340111991,1728589344508,-152.0,0.00027711,20]
[340111992,1728589344532,-2000.0,0.00027711,120]
[340111993,1728589344555,-264.454391,0.00027711,120]
[340111994,1728589344578,-193.789985,0.00027711,120]
[340111995,1728589344601,-2000.0,0.00029211,120]
[340111996,1728589344624,-307.73737296,0.00029999,10]
[340111997,1728589344646,-163.72550666,0.0003,14]
[340111998,1728589344669,-561.09718512,0.0003,90]
[340111999,1728589344692,-150.0,0.0003,22]
[340112000,1728589344715,-2000.0,0.00030711,120]
[340112001,1728589344739,-154.41,0.00032,14]
[340112002,1728589344760,-2033.945193,0.00032211,120]
[340112003,1728589344784,-2747.29678861,0.00032233,15]
[340112004,1728589344808,-2655.61373325,0.00032398,22]
[340112005,1728589344839,-150.0,0.00032876,120]
[340112006,1728589344860,-1000.0,0.00032876,120]
[340112007,1728589344883,-156.56440611,0.00033,120]
[340112008,1728589344905,-1000.0,0.00033,13]
[340112009,1728589344930,-1494.6884796,0.00033,21]
[340112010,1728589344954,-501.568465,0.00033,14]
[340112011,1728589344976,-434.26702502,0.0003315,120]
[340112012,1728589344999,-292.34,0.00033151,120]
[340112013,1728589345022,-500.0,0.00033583,60]
[340112014,1728589345044,-400.0,0.00033583,60]
[340112015,1728589345066,-900.0,0.00033857,60]
[340112016,1728589345093,-1600.0,0.00033857,60]
[340112017,1728589345116,-221.0,0.00034,120]
[340112018,1728589345137,-154.41,0.000341,30]
[340112019,1728589345160,-300.0,0.00034246,120]
[340112020,1728589345183,-150.0,0.00034548,10]
[340112021,1728589345206,-500.0,0.00034679,60]
[340112022,1728589345230,-796.18,0.000348,30]
[340112023,1728589345252,-176.47,0.000349,30]
[340112024,1728589345276,-212.18722266,0.000349,120]
[340112025,1728589345298,-900.0,0.00034953,60]
[340112026,1728589345319,-1600.0,0.00034953,60]
[340112027,1728589345342,-176.47,0.000355,30]
[340112028,1728589345364,-462.30220498,0.00035616,120]
[340112029,1728589345385,-153.67,0.00035616,120]
[340112030,1728589345407,-500.0,0.00035775,60]
[340112031,1728589345430,-2747.29678861,0.00035789,15]
[340112032,1728589345453,-219.0,0.00036,120]
[340112033,1728589345476,-900.0,0.00036049,60]
[340112034,1728589345501,-1600.0,0.00036049,60]
[340112035,1728589345526,-154.41,0.000363,30]
[340112036,1728589345550,-500.0,0.00036871,60]
[340112037,1728589345573,-900.0,0.00037145,60]
[340112038,1728589345596,-1600.0,0.00037145,60]
[340112039,1728589345617,-1000.0,0.0003726,30]
[340112040,1728589345643,-10773.94054239,0.000375,30]
[340112041,1728589345665,-5400.0,0.000378,120]
[340112042,1728589345688,-500.0,0.00037967,60]
[340112043,1728589345711,-500.0,0.00038,120]
[340112044,1728589345732,-4013.91752749,0.00038,120]
[340112045,1728589345755,-900.0,0.00038241,60]
[340112046,1728589345779,-1600.0,0.00038241,60]
[340112047,1728589345801,-175.449075,0.00038356,30]
[340112048,1728589345824,-304.88875882,0.0003836,120]
[340112049,1728589345847,-304.88875882,0.0003836,120]
[340112050,1728589345870,-304.88875882,0.0003836,120]
[340112051,1728589345892,-304.88875882,0.0003836,120]
[340112052,1728589345922,-304.88875882,0.0003836,120]
[340112053,1728589345947,-304.88875882,0.0003836,120]
[340112054,1728589345971,-304.88875882,0.0003836,120]
[340112055,1728589345995,-304.88875882,0.0003836,120]
[340112056,1728589346020,-304.88875882,0.0003836,120]
[340112057,1728589346042,-304.88875882,0.0003836,120]
[340112058,1728589346064,-304.88875882,0.0003836,120]
[340112059,1728589346086,-304.88875882,0.0003836,120]
[340112060,1728589346110,-304.88875882,0.0003836,120]
[340112061,1728589346135,-304.88875882,0.0003836,120]
[340112062,1728589346159,-304.88875882,0.0003836,120]
[340112063,1728589346183,-304.88875882,0.0003836,120]
[340112064,1728589346329,-304.88875882,0.0003836,120]
[340112065,1728589346354,-304.88875882,0.0003836,120]
[340112066,1728589346377,-304.88875882,0.0003836,120]
[340112067,1728589346402,-305.38,0.0003836,120]
[340112068,1728589346429,-464.84279114,0.0003836,120]
[340112069,1728589346453,-464.84279114,0.0003836,120]
[340112070,1728589346475,-464.84279114,0.0003836,120]
[340112071,1728589346504,-464.84279114,0.0003836,120]
[340112072,1728589346529,-464.84279114,0.0003836,120]
[340112073,1728589346553,-464.84279114,0.0003836,120]
[340112074,1728589346575,-464.84279114,0.0003836,120]
[340112075,1728589346599,-464.84279114,0.0003836,120]
[340112076,1728589346622,-464.84279114,0.0003836,120]
[340112077,1728589346645,-464.84279114,0.0003836,120]
[340112078,1728589346668,-464.84279114,0.0003836,120]
[340112079,1728589346691,-464.84279114,0.0003836,120]
[340112080,1728589346714,-464.84279114,0.0003836,120]
[340112081,1728589346737,-464.84279114,0.0003836,120]
[340112082,1728589346760,-464.84279114,0.0003836,120]
[340112083,1728589346784,-464.84279114,0.0003836,120]
[340112084,1728589346806,-464.84279114,0.0003836,120]
[340112085,1728589346829,-464.84279114,0.0003836,120]
[340112086,1728589346851,-464.84279114,0.0003836,120]
[340112087,1728589346874,-465.34,0.0003836,120]
[340112088,1728589346897,-727.7981418,0.0003836,120]
[340112089,1728589346923,-727.7981418,0.0003836,120]
[340112090,1728589346948,-727.7981418,0.0003836,120]
[340112091,1728589346975,-727.7981418,0.0003836,120]
[340112092,1728589347003,-727.7981418,0.0003836,120]
[340112093,1728589347027,-727.7981418,0.0003836,120]
[340112094,1728589347049,-727.7981418,0.0003836,120]
[340112095,1728589347072,-727.7981418,0.0003836,120]
[340112096,1728589347095,-727.7981418,0.0003836,120]
[340112097,1728589347117,-727.7981418,0.0003836,120]
[340112098,1728589347139,-727.7981418,0.0003836,120]
[340112099,1728589347161,-727.7981418,0.0003836,120]
[340112100,1728589347184,-727.7981418,0.0003836,120]
[340112101,1728589347207,-727.7981418,0.0003836,120]
[340112102,1728589347232,-727.7981418,0.0003836,120]
[340112103,1728589347256,-727.7981418,0.0003836,120]
[340112104,1728589347281,-727.7981418,0.0003836,120]
[340112105,1728589347304,-727.7981418,0.0003836,120]
[340112106,1728589347327,-727.7981418,0.0003836,120]
[340112107,1728589347349,-728.29,0.0003836,120]
[340112108,1728589347371,-1000.0,0.00038466,120]
[340112109,1728589347394,-231.59224166,0.00039,120]
[340112110,1728589347418,-185.09249952,0.00039,30]
[340112111,1728589347443,-12084.45812102,0.00039,120]
[340112112,1728589347467,-8500.0,0.00039,11]
[340112113,1728589347489,-2646.81113072,0.00039,11]
[340112114,1728589347516,-500.0,0.00039063,60]
[340112115,1728589347550,-900.0,0.00039337,60]
[340112116,1728589347573,-1600.0,0.00039337,60]
[340112117,1728589347597,-2747.29678861,0.00039344,15]
[340112118,1728589347622,-96546.62,0.000395,30]
[340112119,1728589347644,-151.101016,0.00039798,120]
[340112120,1728589347666,-1640.34902969,0.000399,120]
[340112121,1728589347687,-412.0,0.00039986,80]
[340112122,1728589347713,-50000.0,0.0004,30]
[340112123,1728589347738,-50000.0,0.0004,40]
[340112124,1728589347763,-50000.0,0.0004,50]
[340112125,1728589347788,-500.0,0.0004,120]
[340112126,1728589347810,-8000.0,0.0004,30]
[340112127,1728589347832,-344.75,0.0004,120]
[340112128,1728589347862,-193.32835524,0.0004,120]
[340112129,1728589347884,-324.13115853,0.0004,120]
[340112130,1728589347907,-157.94979806,0.0004,120]
[340112131,1728589347936,-8252.56138791,0.0004,30]
[340112132,1728589347961,-151.0,0.0004,120]
[340112133,1728589347984,-1014.0,0.0004,30]
[340112134,1728589348009,-165.34754852,0.0004,120]
[340112135,1728589348038,-207.10673307,0.0004,120]
[340112136,1728589348062,-404.56652154,0.0004,90]
[340112137,1728589348089,-1056.0,0.0004,120]
[340112138,1728589348111,-4013.91752749,0.0004,120]
[340112139,1728589348133,-972.19,0.0004,120]
[340112140,1728589348155,-150.0,0.0004,60]
[340112141,1728589348178,-305.32608806,0.0004,120]
[340112142,1728589348205,-306.31590271,0.00040159,60]
[340112143,1728589348232,-157.101016,0.00040198,120]
[340112144,1728589348254,-900.0,0.00040433,60]
[340112145,1728589348280,-1229.77118689,0.00040433,60]
[340112146,1728589348303,-151.101005,0.00040498,120]
[340112147,1728589348326,-157.101016,0.00040798,120]
[340112148,1728589348354,-50000.0,0.00041,31]
[340112149,1728589348379,-36742.1124179,0.00041,41]
[340112151,1728589578114,150.0,8.909e-05,2]
[340112152,1728589578135,150.0,8.909e-05,2]
[340112153,1728589578160,189.28,8.909e-05,2]
[340112170,1728589832160,-250.0,0.00010534,2]
[340112171,1728589832170,-159.23,0.00010544,2]
[340112172,1728589832179,-350.68,0.00010563,2]
[340112173,1728589832189,-1000.0,0.00010685,2]
[340112174,1728589832199,-218.9190792,0.000109,2]
[340112195,1728589838086,-810.2217208,0.000109,2]
[340112196,1728589838096,-1923.10775205,0.000109,2]
[340112197,1728589838105,-172.01,0.00010959,2]
[340112198,1728589838118,-161.5,0.00010959,2]
[340112199,1728589838128,-257.28,0.00010959,2]
[340112200,1728589838137,-250.0,0.0001096,2]
[340112202,1728589838146,-300.0,0.0001099,2]
[340112203,1728589838156,-500.0,0.00010991,2]
[340112204,1728589838165,-5776.3532978,0.00010994,2]
[340112205,1728589838175,-219.6,0.00010997,2]
[340112206,1728589838186,-166.80648,0.00010997,2]
[340112207,1728589838197,-286.17813824,0.00010999,2]
[340112208,1728589838207,-1811.94261111,0.00010999,2]
[340112209,1728589838407,-650.62722812,0.00010999,2]
[340112210,1728589838420,-663.20124754,0.00010999,2]
[340112221,1728589840443,-1788.89544,0.00010999,2]
[340112222,1728589840456,-1089.54347323,0.00010999,2]
[340112223,1728589840466,-1950.29699677,0.00010999,2]
[340112224,1728589840475,-262.11204166,0.00010999,2]
[340112225,1728589840485,-580.0,0.00011,2]
[340112226,1728589840494,-92248.52036915,0.00011,2]
[340112227,1728589840503,-667918.46539856,0.00011,2]
[340112228,1728589840515,-93053.41393038,0.00011,2]
[340112229,1728589840526,-39297.84406584,0.00011,2]
[340112230,1728589840537,-323.888006,0.00011,2]
[340112253,1728589843182,-1545.89245308,0.00011,2]
[340112259,1728589843234,-116276.83491431,0.00011,2]
[340112261,1728589843245,-250100.0,0.00011,2]
[340112272,1728589843341,-2384.1293918,0.00011,2]
[340112278,1728589843398,-500150.0,0.00011,2]
[340112316,1728589846075,-521.0,0.00011,2]
[340112318,1728589846086,-719.11888,0.00011,2]
[340112319,1728589846130,-400.87145032,0.00011,2]
[340112320,1728589846399,-3515.5793708,0.00011,2]
[340112322,1728590194127,472.78,9.497e-05,2]
[340112323,1728590728422,449.14,9.486e-05,2]
[340112332,1728591032244,-337.01913656,0.000109,2]
[340112364,1728591038245,-872.68332437,0.000109,2]
[340112367,1728591038460,-549.23123907,0.000109,2]
[340112368,1728591038474,-405.23893209,0.000109,2]
[340112369,1728591038567,-588.36166791,0.000109,2]
[340112370,1728591038580,-150.7,0.00010959,2]
[340112371,1728591038592,-162.79,0.00010959,2]
[340112372,1728591038604,-482.88027328,0.00010999,2]
[340112373,1728591038617,-13591.73814657,0.00011,2]
[340112424,1728591043223,-838.42354595,0.00011,2]
[340112428,1728591043330,-12592.55099999,0.00011,2]
[340112429,1728591043384,-56000.95563973,0.00011,2]
[340112430,1728591043397,-60275.87927458,0.00011,2]
[340112431,1728591043412,-246196.11022245,0.00011,2]
[340112432,1728591043424,-3903.88977755,0.00011,2]
[340112440,1728591046369,-59693.107792,0.00011,2]
[340112441,1728591270329,426.68,9.232e-05,2]
[340112809,1728591785487,405.34,8.781e-05,2]
[340112812,1728591884294,10000.0,0.00012,3]
[340112814,1728591950411,10000.0,0.00012,3]
[340112816,1728591996906,10000.0,0.00012,3]
[340112817,1728592006839,10000.0,0.00012,3]
[340112818,1728592014371,5396.0,0.00012,3]
[340112844,1728592232304,-684.99,0.0001035,2]
[340112845,1728592232314,-200.0,0.00010373,2]
[340112846,1728592232324,-925.6,0.000105,2]
[340112847,1728592232332,-250.0,0.00010675,2]
[340112848,1728592232342,-250.0,0.00010676,2]
[340112849,1728592232351,-183.8,0.00010721,2]
[340112850,1728592232360,-2495.0,0.00010862,2]
[340112851,1728592232369,-150.0,0.00010879,2]
[340112852,1728592232379,-23361.08781176,0.0001088,2]
[340112853,1728592232390,-493.14501645,0.0001088,2]
[340112854,1728592232401,-11576.25247976,0.0001088,2]
[340112855,1728592232412,-357.55576048,0.0001088,2]
[340112856,1728592232423,-812.39353337,0.0001088,2]
[340112857,1728592232479,-1579.69576953,0.0001088,2]
[340112858,1728592232536,-277.5783648,0.0001088,2]
[340112866,1728592238454,-762.66851163,0.0001088,2]
[340112868,1728592238719,-5980.52168403,0.0001088,2]
[340113039,1728592240567,-901.97564511,0.0001088,2]
[340113041,1728592240580,-1305.1161,0.0001088,2]
[340113054,1728592240710,-282.99169063,0.0001088,2]
[340113124,1728592243499,-15298.1610031,0.0001088,2]
[340113125,1728592243508,-22927.7324,0.000109,2]
[340113126,1728592243518,-18365.2721,0.000109,2]
[340113127,1728592243528,-1000.0,0.000109,2]
[340113128,1728592243537,-2684.71377148,0.000109,2]
[340113129,1728592243548,-26352.10622852,0.000109,2]
[340113130,1728592243557,-1730.79697689,0.000109,2]
[340113131,1728592243566,-183.30171903,0.000109,2]
[340113132,1728592243576,-205.82,0.00010959,2]
[340113133,1728592243586,-163.4,0.00010959,2]
[340113134,1728592243594,-250.0,0.00010959,2]
[340113135,1728592243604,-338.0161913,0.00010999,2]
[340113136,1728592243613,-46507.49025722,0.00011,2]
[340113137,1728592243622,-174369.06862704,0.00011,2]
[340113138,1728592243660,-450.03150549,0.00011,2]
[340113157,1728592246381,-3745.89362441,0.000109,2]
[340113158,1728592246391,-73963.50637563,0.00011,2]
[340113159,1728592246491,-2194.15517873,0.00011,2]
[340113160,1728592246655,-393.6201291,0.00011,2]
[340113161,1728592246667,-5999.99999953,0.00011,2]
[340113162,1728592246713,-5062.62290345,0.00011,2]
[340113170,1728592401745,404.88,8.837e-05,2]
[340113172,1728593057273,384.63,8.439e-05,2]
[340113174,1728593233431,418.92,0.00010142,2]
[340113180,1728593431473,-1000.0,0.00010241,2]
[340113181,1728593431483,-250.0,0.00010243,2]
[340113182,1728593431492,-2491.43535012,0.00010243,2]
[340113183,1728593431503,-350.28667245,0.00010243,2]
[340113184,1728593431581,-16200.0,0.00010243,2]
[340113185,1728593431592,-761.48547022,0.00010243,2]
[340113186,1728593431603,-1254.52250721,0.00010243,2]
[340113187,1728593431614,-738.27,0.00010266,2]
[340113188,1728593431623,-150.0,0.00010289,2]
[340113189,1728593431632,-280.54,0.00010319,2]
[340113190,1728593431641,-250.0,0.00010398,2]
[340113191,1728593431652,-164.22,0.00010674,2]
[340113192,1728593431661,-384.63,0.00010703,2]
[340113193,1728593431669,-205.94,0.00010714,2]
[340113194,1728593431679,-150.0,0.00010743,2]
[340113195,1728593431690,-3771.83868842,0.00010744,2]
[340113196,1728593431701,-29.12131158,0.00010744,2]
[340113197,1728593431710,-999.99,0.00010744,2]
[340113198,1728593431719,-150.99,0.00010744,2]
[340113199,1728593431728,-704.63153842,0.000108,2]
[340113200,1728593431739,-300.0,0.000108,2]
[340113309,1728593437613,-742.11629914,0.000108,2]
[340113310,1728593437624,-277.0527081,0.000108,2]
[340113311,1728593437668,-444.59249276,0.000108,2]
[340113312,1728593437677,-200.0,0.00010888,2]
[340113313,1728593437687,-9949.64639829,0.00010899,2]
[340113314,1728593437883,-3149.89823999,0.00010899,2]
[340113322,1728593439488,-749.07728324,0.00010899,2]
[340113323,1728593439500,-1010.16822936,0.00010899,2]
[340113332,1728593442514,-21809.61984912,0.00010899,2]
[340113333,1728593442524,-1730.79697689,0.00010899,2]
[340113334,1728593442536,-20567.5072,0.000109,2]
[340113335,1728593442545,-262.2534,0.000109,2]
[340113336,1728593442555,-1000.0,0.000109,2]
[340113337,1728593442564,-1000.0,0.000109,2]
[340113338,1728593442573,-22927.7324,0.000109,2]
[340113339,1728593442583,-45979.3293,0.000109,2]
[340113340,1728593442592,-205.92,0.00010959,2]
[340113341,1728593442601,-161.87,0.00010959,2]
[340113342,1728593442611,-164.65,0.00010959,2]
[340113343,1728593442620,-250.0,0.00010959,2]
[340113344,1728593442629,-150.7,0.00010959,2]
[340113345,1728593442639,-500.0,0.00010973,2]
[340113346,1728593442648,-214.4624622,0.00010973,2]
[340113347,1728593442659,-500.0,0.00010973,2]
[340113348,1728593442669,-127989.15469589,0.00010975,2]
[340113349,1728593442678,-338.0161913,0.00010999,2]
[340113350,1728593442687,-46507.49025722,0.00011,2]
[340113351,1728593442699,-408950.79726738,0.00011,2]
[340113352,1728593442720,-720.70825157,0.00011,2]
[340113353,1728593442731,-250100.0,0.00011,2]
[340113354,1728593442787,-401.13075014,0.00011,2]
[340113389,1728593445822,-2116.95788424,0.00011,2]
[340113390,1728593445833,-47500.0,0.00011,2]
[340113391,1728593445849,-560.82462906,0.00011,2]
[340113392,1728593445860,-5737.37786493,0.00011,2]
[340113447,1728593705137,373.92,8.357e-05,2]
[340113449,1728594015786,267.18,0.00010199,2]
[340113451,1728594087783,250.0,0.00010212,2]
[340113452,1728594177882,200.0,0.00010157,2]
[340113459,1728594198897,355.22,8.315e-05,2]
[340113464,1728594306079,500.0,0.00010187,2]
[340113469,1728594422624,800.0,0.00010208,2]
[340113479,1728594580162,450.0,0.00010221,2]
[340113487,1728594631660,-200.0,0.00010335,2]
[340113488,1728594631669,-183.8,0.00010572,2]
[340113489,1728594631679,-355.22,0.00010578,2]
[340113490,1728594631688,-135.8517417,0.00010819,2]
[340113491,1728594631705,-2879.9571613,0.00010819,2]
[340113492,1728594631714,-720.0428387,0.00010874,2]
[340113493,1728594631726,-20644.49102131,0.00010874,2]
[340113494,1728594631735,-179.262,0.00010874,2]
[340113495,1728594631744,-150.0,0.00010874,2]
[340113496,1728594631753,-28145.0742,0.00010875,2]
[340113497,1728594631763,-488.9524,0.00010875,2]
[340113498,1728594631772,-183.30171903,0.000109,2]
[340113499,1728594631781,-8473.3885,0.000109,2]
[340113500,1728594631791,-1000.0,0.000109,2]
[340113501,1728594631801,-776.85,0.000109,2]
[340113502,1728594631810,-160.65,0.00010959,2]
[340113503,1728594631820,-164.65,0.00010959,2]
[340113504,1728594631829,-150.0,0.00010959,2]
[340113505,1728594631838,-9999.99,0.00010959,2]
[340113506,1728594631848,-250.0,0.00010959,2]
[340113507,1728594631856,-551.0,0.00010959,2]
[340113508,1728594631865,-353.24,0.00010959,2]
[340113509,1728594631875,-323.92,0.00010959,2]
[340113510,1728594631884,-537.86,0.00010973,2]
[340113511,1728594631893,-368.87734335,0.00010973,2]
[340113512,1728594631902,-166.80647998,0.00010997,2]
[340113513,1728594631912,-253.78182321,0.00010999,2]
[340113514,1728594631922,-22569.83512882,0.00011,2]
[340113515,1728594631934,-14771.47652837,0.00011,2]
[340113516,1728594631946,-479.7407356,0.00011,2]
[340113517,1728594631957,-472.01148099,0.00011,2]
[340113518,1728594631968,-333.1327986,0.00011,2]